fUSD/lending_fUSD_20251017
["ID","MTS","AMOUNT","RATE_DAILY","PERIOD"]
[391616265,1760706679700,-500.0,0.00024657,2]
[391616266,1760706679710,-582.19646977,0.00024657,2]
[391616267,1760706679720,-500.0,0.00024657,2]
[391616268,1760706679729,-500.0,0.00024657,2]
[391616269,1760706679741,-500.0,0.00024657,2]
[391616270,1760706679751,-500.12458329,0.00024657,2]
[391616271,1760706679760,-500.83880359,0.00024657,2]
[391616272,1760706679770,-500.0,0.00024657,2]
[391616273,1760706679779,-500.0,0.00024657,2]
[391616274,1760706679788,-3283.98,0.00024657,2]
[391616275,1760706679798,-500.0,0.00024657,2]
[391616276,1760706679807,-500.0,0.00024657,2]
[391616277,1760706679817,-555.34249984,0.00024657,2]
[391616278,1760706679827,-500.0,0.00024657,2]
[391616279,1760706679837,-502.53687741,0.00024657,2]
[391616280,1760706679846,-1615.68,0.00024657,2]
[391616281,1760706679855,-500.0,0.00024657,2]
[391616282,1760706679865,-500.0,0.00024657,2]
[391616283,1760706679876,-500.0,0.00024657,2]
[391616284,1760706679886,-500.0,0.00024657,2]
[391616285,1760706679896,-500.0,0.00024657,2]
[391616286,1760706679906,-4383.35,0.00024657,2]
[391616287,1760706679916,-500.0,0.00024657,2]
[391616288,1760706679928,-500.0,0.00024657,2]
[391616289,1760706679942,-583.84,0.00024657,2]
[391616290,1760706679951,-500.0,0.00024657,2]
[391616291,1760706679960,-6598.67,0.00024657,2]
[391616292,1760706679970,-500.0,0.00024657,2]
[391616293,1760706679981,-500.90093285,0.00024657,2]
[391616294,1760706679991,-500.0,0.00024657,2]
[391616295,1760706680001,-1559.75,0.00024657,2]
[391616296,1760706680011,-939.83,0.00024657,2]
[391616297,1760706680021,-500.0,0.00024657,2]
[391616298,1760706680031,-500.0,0.00024657,2]
[391616299,1760706680041,-500.48840841,0.00024657,2]
[391616300,1760706680050,-500.0,0.00024657,2]
[391616301,1760706680060,-500.0,0.00024657,2]
[391616302,1760706680070,-500.0,0.00024657,2]
[391616303,1760706680080,-500.0,0.00024657,2]
[391616304,1760706680091,-535.11385461,0.00024657,2]
[391616305,1760706680100,-500.0,0.00024657,2]
[391616306,1760706680111,-500.39616488,0.00024657,2]
[391616307,1760706680121,-510.94,0.00024657,2]
[391616308,1760706680131,-528.72230801,0.00024657,2]
[391616309,1760706680141,-500.66531954,0.00024657,2]
[391616310,1760706680150,-271.01682521,0.00024657,2]
[391616311,1760706680160,-500.0,0.00024657,2]
[391616312,1760706680169,-500.0,0.00024657,2]
[391616313,1760706680179,-500.0,0.00024657,2]
[391616314,1760706680189,-500.0,0.00024657,2]
[391616315,1760706680200,-500.0,0.00024657,2]
[391616316,1760706680210,-500.0,0.00024657,2]
[391616317,1760706680219,-558.21,0.00024657,2]
[391616318,1760706680229,-500.0,0.00024657,2]
[391616319,1760706680238,-649.71575056,0.00024657,2]
[391616320,1760706680249,-502.06004589,0.00024657,2]
[391616321,1760706680259,-500.57573199,0.00024657,2]
[391616322,1760706680268,-500.0,0.00024657,2]
[391616323,1760706680278,-500.0,0.00024657,2]
[391616324,1760706680288,-500.0,0.00024657,2]
[391616325,1760706680297,-630.42998509,0.00024657,2]
[391616326,1760706680308,-500.0,0.00024657,2]
[391616327,1760706680317,-500.0,0.00024657,2]
[391616328,1760706680327,-500.0,0.00024657,2]
[391616329,1760706680336,-500.0,0.00024657,2]
[391616330,1760706680346,-500.0,0.00024657,2]
[391616331,1760706680356,-500.81711423,0.00024657,2]
[391616332,1760706680366,-500.0,0.00024657,2]
[391616333,1760706680375,-1355.04,0.00024657,2]
[391616334,1760706680385,-500.0,0.00024657,2]
[391616335,1760706680394,-500.0,0.00024657,2]
[391616336,1760706680404,-500.0,0.00024657,2]
[391616337,1760706680414,-500.0,0.00024657,2]
[391616338,1760706680424,-500.49393048,0.00024657,2]
[391616339,1760706680434,-500.0,0.00024657,2]
[391616340,1760706680443,-1265.72,0.00024657,2]
[391616341,1760706680454,-500.0,0.00024657,2]
[391616342,1760706680463,-452.37064061,0.00024657,2]
[391616343,1760706680473,-500.0,0.00024657,2]
[391616344,1760706680486,-500.0,0.00024657,2]
[391616345,1760706680496,-500.0,0.00024657,2]
[391616346,1760706680506,-511.03315106,0.00024657,2]
[391616347,1760706680516,-500.0,0.00024657,2]
[391616348,1760706680525,-295.74442227,0.00024657,2]
[391616349,1760706680535,-500.0,0.00024657,2]
[391616350,1760706680545,-500.0,0.00024657,2]
[391616351,1760706680554,-402.17838927,0.00024657,2]
[391616352,1760706680563,-501.03696464,0.00024657,2]
[391616353,1760706680573,-500.0,0.00024657,2]
[391616354,1760706680582,-500.0,0.00024657,2]
[391616355,1760706680592,-500.0,0.00024657,2]
[391616356,1760706680601,-1000.0,0.00024658,2]
[391616357,1760706680611,-151.0,0.00024658,7]
[391616358,1760706680621,-200.714542,0.00024658,7]
[391616359,1760706680631,-150.0,0.00024658,2]
[391616360,1760706680640,-300.0,0.00024673,2]
[391616361,1760706680650,-5534.97351841,0.000247,2]
[391616362,1760706680659,-14928.46,0.000247,7]
[391616363,1760706680670,-150.0,0.00024713,2]
[391616364,1760706680679,-169.9523374,0.00024729,7]
[391616365,1760706680690,-200.0,0.00024768,2]
[391616366,1760706680700,-951.45999769,0.00024831,4]
[391616367,1760706680710,-951.45999769,0.00024831,4]
[391616368,1760706680720,-951.45999769,0.00024831,4]
[391616369,1760706680730,-951.45999769,0.00024831,4]
[391616370,1760706680740,-951.45999769,0.00024831,4]
[391616371,1760706680749,-951.45999769,0.00024831,4]
[391616372,1760706680759,-951.45999769,0.00024831,4]
[391616373,1760706680768,-951.45999769,0.00024831,4]
[391616374,1760706680778,-951.45999769,0.00024831,4]
[391616375,1760706680788,-951.45999769,0.00024831,4]
[391616376,1760706680797,-951.45999769,0.00024831,4]
[391616377,1760706680807,-951.45999769,0.00024831,4]
[391616378,1760706680817,-951.45999769,0.00024831,4]
[391616379,1760706680826,-951.45999769,0.00024831,4]
[391616380,1760706680835,-951.45999769,0.00024831,4]
[391616381,1760706680845,-951.45999769,0.00024831,4]
[391616382,1760706680854,-951.45999769,0.00024831,4]
[391616383,1760706680864,-951.45999769,0.00024831,4]
[391616384,1760706680872,-951.45999769,0.00024831,4]
[391616385,1760706680882,-951.45,0.00024831,4]
[391616386,1760706680892,-6412.59995232,0.00024899,7]
[391616387,1760706680901,-91242.91879419,0.000249,2]
[391616388,1760706680911,-503779.968405,0.000249,2]
[391616389,1760706680920,-261.23436234,0.0002493,2]
[391616390,1760706680930,-155.601299,0.00024931,2]
[391616391,1760706680944,-172.736519,0.00024931,2]
[391616392,1760706680954,-1266.688585,0.00024931,2]
[391616393,1760706680964,-36735.938127,0.00024931,2]
[391616394,1760706680974,-47887.695419,0.00024931,2]
[391616395,1760706680985,-1340.364601,0.00024931,2]
[391616396,1760706680996,-670.182301,0.00024931,2]
[391616397,1760706681007,-1750.514599,0.00024931,2]
[391616398,1760706681017,-29588.510886,0.00024931,2]
[391616399,1760706681026,-500.0,0.00024931,2]
[391616400,1760706681035,-264.49504754,0.00024931,2]
[391616401,1760706681045,-465.0920923,0.00024931,2]
[391616402,1760706681055,-500.0,0.00024931,2]
[391616403,1760706681066,-428.83275449,0.00024931,2]
[391616404,1760706681078,-500.0,0.00024931,2]
[391616405,1760706681092,-371.70461225,0.00024931,2]
[391616406,1760706681108,-500.0,0.00024931,2]
[391616407,1760706681123,-500.0,0.00024931,2]
[391616408,1760706681135,-500.0,0.00024931,2]
[391616409,1760706681148,-500.0,0.00024931,2]
[391616410,1760706681161,-500.0,0.00024931,2]
[391616411,1760706681176,-350.8745913,0.00024931,2]
[391616412,1760706681189,-337.93115681,0.00024931,2]
[391616413,1760706681204,-500.0,0.00024931,2]
[391616414,1760706681220,-500.0,0.00024931,2]
[391616415,1760706681233,-500.0,0.00024931,2]
[391616416,1760706681247,-500.0,0.00024931,2]
[391616417,1760706681261,-500.0,0.00024931,2]
[391616418,1760706681272,-500.0,0.00024931,2]
[391616419,1760706681283,-500.0,0.00024931,2]
[391616420,1760706681297,-500.0,0.00024931,2]
[391616421,1760706681311,-500.0,0.00024931,2]
[391616422,1760706681324,-500.0,0.00024931,2]
[391616423,1760706681339,-500.0,0.00024931,2]
[391616424,1760706681353,-500.0,0.00024931,2]
[391616425,1760706681366,-500.0,0.00024931,2]
[391616426,1760706681379,-500.0,0.00024931,2]
[391616427,1760706681394,-500.0,0.00024931,2]
[391616428,1760706681408,-500.0,0.00024931,2]
[391616429,1760706681420,-501.13920271,0.00024931,2]
[391616430,1760706681435,-500.0,0.00024931,2]
[391616431,1760706681447,-500.0,0.00024931,2]
[391616432,1760706681461,-495.84736648,0.00024931,2]
[391616433,1760706681473,-500.0,0.00024931,2]
[391616434,1760706681487,-500.0,0.00024931,2]
[391616435,1760706681501,-500.0,0.00024931,2]
[391616436,1760706681514,-500.0,0.00024931,2]
[391616437,1760706681527,-504.16726463,0.00024931,2]
[391616438,1760706681542,-500.0,0.00024931,2]
[391616439,1760706681555,-500.0,0.00024931,2]
[391616440,1760706681568,-1160.36,0.00024931,2]
[391616441,1760706681580,-500.0,0.00024931,2]
[391616442,1760706681592,-500.0,0.00024931,2]
[391616443,1760706681603,-405.54356136,0.00024931,2]
[391616444,1760706681614,-500.0,0.00024931,2]
[391616445,1760706681627,-500.0,0.00024931,2]
[391616446,1760706681641,-500.0,0.00024931,2]
[391616447,1760706681657,-705.2,0.00024931,2]
[391616448,1760706681670,-500.0,0.00024931,2]
[391616449,1760706681681,-500.0,0.00024931,2]
[391616450,1760706681691,-500.0,0.00024931,2]
[391616451,1760706681702,-500.0,0.00024931,2]
[391616452,1760706681715,-358.21655629,0.00024931,2]
[391616453,1760706681728,-500.0,0.00024931,2]
[391616454,1760706681742,-377.92538499,0.00024931,2]
[391616455,1760706681754,-500.0,0.00024931,2]
[391616456,1760706681764,-500.0,0.00024931,2]
[391616457,1760706681776,-1150.12,0.00024931,2]
[391616458,1760706681790,-524.3176766,0.00024931,2]
[391616459,1760706681801,-500.0,0.00024931,2]
[391616460,1760706681813,-603.58602398,0.00024931,2]
[391616461,1760706681824,-500.0,0.00024931,2]
[391616462,1760706681836,-500.0,0.00024931,2]
[391616463,1760706681847,-500.0,0.00024931,2]
[391616464,1760706681859,-500.0,0.00024931,2]
[391616465,1760706681871,-500.0,0.00024931,2]
[391616466,1760706681882,-500.0,0.00024931,2]
[391616467,1760706681893,-500.0,0.00024931,2]
[391616468,1760706681905,-500.09,0.00024931,2]
[391616469,1760706681916,-330.06457737,0.00024931,2]
[391616470,1760706681929,-500.0,0.00024931,2]
[391616471,1760706681949,-500.0,0.00024931,2]
[391616472,1760706681961,-500.0,0.00024931,2]
[391616473,1760706681973,-500.0,0.00024931,2]
[391616474,1760706681984,-196.87050629,0.00024931,2]
[391616475,1760706681998,-500.0,0.00024931,2]
[391616476,1760706682010,-270.36259859,0.00024931,2]
[391616477,1760706682021,-624.28,0.00024931,2]
[391616478,1760706682033,-500.0,0.00024931,2]
[391616479,1760706682045,-270.49579185,0.00024931,2]
[391616480,1760706682057,-500.0,0.00024931,2]
[391616481,1760706682069,-500.0,0.00024931,2]
[391616482,1760706682080,-635.18,0.00024931,2]
[391616483,1760706682092,-500.0,0.00024931,2]
[391616484,1760706682103,-500.0,0.00024931,2]
[391616485,1760706682116,-738.71,0.00024931,2]
[391616486,1760706682135,-500.0,0.00024931,2]
[391616487,1760706682147,-875.04,0.00024931,2]
[391616488,1760706682159,-500.0,0.00024931,2]
[391616489,1760706682170,-2590.26,0.00024931,2]
[391616490,1760706682182,-523.65696936,0.00024931,2]
[391616491,1760706682194,-500.0,0.00024931,2]
[391616492,1760706682205,-589.63,0.00024931,2]
[391616493,1760706682217,-500.0,0.00024931,2]
[391616494,1760706682229,-500.0,0.00024931,2]
[391616495,1760706682240,-500.0,0.00024931,2]
[391616496,1760706682254,-500.0,0.00024931,2]
[391616497,1760706682266,-1711.57,0.00024931,2]
[391616498,1760706682277,-586.78921413,0.00024931,2]
[391616499,1760706682288,-500.0,0.00024931,2]
[391616500,1760706682299,-470.43893288,0.00024931,2]
[391616501,1760706682311,-500.0,0.00024931,2]
[391616502,1760706682323,-549.57,0.00024931,2]
[391616503,1760706682334,-646.93746779,0.00024931,2]
[391616504,1760706682346,-500.0,0.00024931,2]
[391616505,1760706682358,-500.0,0.00024931,2]
[391616506,1760706682370,-500.0,0.00024931,2]
[391616507,1760706682382,-500.0,0.00024931,2]
[391616508,1760706682394,-500.0,0.00024931,2]
[391616509,1760706682406,-500.0,0.00024931,2]
[391616510,1760706682417,-500.0,0.00024931,2]
[391616511,1760706682428,-500.0,0.00024931,2]
[391616512,1760706682440,-500.0,0.00024931,2]
[391616513,1760706682451,-501.01941496,0.00024931,2]
[391616514,1760706682463,-500.0,0.00024931,2]
[391616515,1760706682475,-500.0,0.00024931,2]
[391616516,1760706682487,-500.0,0.00024931,2]
[391616517,1760706682502,-500.0,0.00024931,2]
[391616518,1760706682514,-500.71245767,0.00024931,2]
[391616519,1760706682525,-500.0,0.00024931,2]
[391616520,1760706682537,-500.0,0.00024931,2]
[391616521,1760706682549,-500.0,0.00024931,2]
[391616522,1760706682560,-500.0,0.00024931,2]
[391616523,1760706682572,-501.83045728,0.00024931,2]
[391616524,1760706682585,-500.0,0.00024931,2]
[391616525,1760706682596,-500.0,0.00024931,2]
[391616526,1760706682608,-500.41324134,0.00024931,2]
[391616527,1760706682620,-599.72,0.00024931,2]
[391616528,1760706682632,-518.87885304,0.00024931,2]
[391616529,1760706682643,-500.0,0.00024931,2]
[391616530,1760706682656,-500.0,0.00024931,2]
[391616531,1760706682667,-591.96289258,0.00024931,2]
[391616532,1760706682680,-500.0,0.00024931,2]
[391616533,1760706682691,-500.0,0.00024931,2]
[391616534,1760706682703,-501.17771239,0.00024931,2]
[391616535,1760706682715,-500.0,0.00024931,2]
[391616536,1760706682727,-500.51671788,0.00024931,2]
[391616537,1760706682739,-500.99784966,0.00024931,2]
[391616538,1760706682754,-926.78,0.00024931,2]
[391616539,1760706682765,-501.60312216,0.00024931,2]
[391616540,1760706682777,-500.0,0.00024931,2]
[391616541,1760706682788,-500.0,0.00024931,2]
[391616542,1760706682800,-500.75881101,0.00024931,2]
[391616543,1760706682812,-500.4542541,0.00024931,2]
[391616544,1760706682823,-500.0,0.00024931,2]
[391616545,1760706682835,-500.0,0.00024931,2]
[391616546,1760706682846,-500.0,0.00024931,2]
[391616547,1760706682858,-500.0,0.00024931,2]
[391616548,1760706682869,-500.0,0.00024931,2]
[391616549,1760706682880,-500.0,0.00024931,2]
[391616550,1760706682892,-500.0,0.00024931,2]
[391616551,1760706682903,-500.0,0.00024931,2]
[391616552,1760706682914,-500.46213989,0.00024931,2]
[391616553,1760706682925,-500.0,0.00024931,2]
[391616554,1760706682942,-508.57968299,0.00024931,2]
[391616555,1760706682953,-500.91291988,0.00024931,2]
[391616556,1760706682965,-500.0,0.00024931,2]
[391616557,1760706682978,-500.0,0.00024931,2]
[391616558,1760706682990,-500.0,0.00024931,2]
[391616559,1760706683002,-511.20078781,0.00024931,2]
[391616560,1760706683015,-500.0,0.00024931,2]
[391616561,1760706683027,-500.90550034,0.00024931,2]
[391616562,1760706683038,-500.0,0.00024931,2]
[391616563,1760706683050,-500.0,0.00024931,2]
[391616564,1760706683063,-501.53232657,0.00024931,2]
[391616565,1760706683076,-500.0,0.00024931,2]
[391616566,1760706683087,-500.0,0.00024931,2]
[391616567,1760706683100,-500.27939682,0.00024931,2]
[391616568,1760706683111,-1817.2,0.00024931,2]
[391616569,1760706683123,-479.82531017,0.00024931,2]
[391616570,1760706683136,-500.0,0.00024931,2]
[391616571,1760706683147,-500.0,0.00024931,2]
[391616572,1760706683159,-500.0,0.00024931,2]
[391616573,1760706683171,-504.47417496,0.00024931,2]
[391616574,1760706683183,-513.78194557,0.00024931,2]
[391616575,1760706683195,-239.77051353,0.00024931,2]
[391616576,1760706683207,-500.0,0.00024931,2]
[391616577,1760706683219,-500.92999916,0.00024931,2]
[391616578,1760706683231,-500.0,0.00024931,2]
[391616579,1760706683243,-500.0,0.00024931,2]
[391616580,1760706683255,-1098.2,0.00024931,2]
[391616581,1760706683266,-156.29877766,0.00024931,2]
[391616582,1760706683280,-500.0,0.00024931,2]
[391616583,1760706683292,-500.0,0.00024931,2]
[391616584,1760706683304,-500.0,0.00024931,2]
[391616585,1760706683315,-500.0,0.00024931,2]
[391616586,1760706683327,-500.0,0.00024931,2]
[391616587,1760706683339,-500.0,0.00024931,2]
[391616588,1760706683351,-500.0,0.00024931,2]
[391616589,1760706683364,-500.16561391,0.00024931,2]
[391616590,1760706683375,-500.0,0.00024931,2]
[391616591,1760706683387,-500.58943937,0.00024931,2]
[391616592,1760706683399,-3442.59,0.00024931,2]
[391616593,1760706683412,-505.29722277,0.00024931,2]
[391616594,1760706683424,-500.0,0.00024931,2]
[391616595,1760706683435,-500.0,0.00024931,2]
[391616596,1760706683447,-500.0,0.00024931,2]
[391616597,1760706683459,-511.41180676,0.00024931,2]
[391616598,1760706683470,-500.0,0.00024931,2]
[391616599,1760706683483,-500.81542061,0.00024931,2]
[391616600,1760706683496,-671.89,0.00024931,2]
[391616601,1760706683507,-509.37196618,0.00024931,2]
[391616602,1760706683518,-501.90414551,0.00024931,2]
[391616603,1760706683529,-510.11306466,0.00024931,2]
[391616604,1760706683542,-500.0,0.00024931,2]
[391616605,1760706683553,-261.59474105,0.00024931,2]
[391616606,1760706683565,-500.89801814,0.00024931,2]
[391616607,1760706683576,-500.0,0.00024931,2]
[391616608,1760706683587,-500.0,0.00024931,2]
[391616609,1760706683599,-2857.65,0.00024931,2]
[391616610,1760706683610,-500.0,0.00024931,2]
[391616611,1760706683621,-500.0,0.00024931,2]
[391616612,1760706683633,-500.34932488,0.00024931,2]
[391616613,1760706683644,-502.15417359,0.00024931,2]
[391616614,1760706683656,-500.0,0.00024931,2]
[391616615,1760706683667,-500.0,0.00024931,2]
[391616616,1760706683679,-500.0,0.00024931,2]
[391616617,1760706683691,-500.0,0.00024931,2]
[391616618,1760706683703,-500.61396884,0.00024931,2]
[391616619,1760706683715,-500.0,0.00024931,2]
[391616620,1760706683727,-500.0,0.00024931,2]
[391616621,1760706683739,-500.0,0.00024931,2]
[391616622,1760706683752,-1873.78,0.00024931,2]
[391616623,1760706683764,-500.0,0.00024931,2]
[391616624,1760706683777,-500.0,0.00024931,2]
[391616625,1760706683788,-3177.57,0.00024931,2]
[391616626,1760706683801,-265.59601219,0.00024931,2]
[391616627,1760706683813,-770.05,0.00024931,2]
[391616628,1760706683825,-503.03993908,0.00024931,2]
[391616629,1760706683837,-500.0,0.00024931,2]
[391616630,1760706683849,-500.0,0.00024931,2]
[391616631,1760706683861,-500.0,0.00024931,2]
[391616632,1760706683872,-501.21261752,0.00024931,2]
[391616633,1760706683883,-500.0,0.00024931,2]
[391616634,1760706683901,-500.0,0.00024931,2]
[391616635,1760706683913,-500.0,0.00024931,2]
[391616636,1760706683925,-500.0,0.00024931,2]
[391616637,1760706683941,-500.0,0.00024931,2]
[391616638,1760706683953,-500.0,0.00024931,2]
[391616639,1760706683965,-224.31412705,0.00024931,2]
[391616640,1760706683978,-500.0,0.00024931,2]
[391616641,1760706683989,-566.717086,0.00024931,2]
[391616642,1760706684004,-500.0,0.00024931,2]
[391616643,1760706684017,-500.0,0.00024931,2]
[391616644,1760706684029,-500.0,0.00024931,2]
[391616645,1760706684041,-500.15603132,0.00024931,2]
[391616646,1760706684054,-543.44,0.00024931,2]
[391616647,1760706684066,-645.03100762,0.00024931,2]
[391616648,1760706684078,-500.0,0.00024931,2]
[391616649,1760706684090,-500.0,0.00024931,2]
[391616650,1760706684102,-500.0,0.00024931,2]
[391616651,1760706684114,-500.0,0.00024931,2]
[391616652,1760706684126,-1701.03,0.00024931,2]
[391616653,1760706684138,-500.0,0.00024931,2]
[391616654,1760706684150,-500.0,0.00024931,2]
[391616655,1760706684163,-1140.2,0.00024931,2]
[391616656,1760706684175,-500.0,0.00024931,2]
[391616657,1760706684188,-616.40146017,0.00024931,2]
[391616658,1760706684200,-282.54926157,0.00024931,2]
[391616659,1760706684212,-500.0,0.00024931,2]
[391616660,1760706684224,-511.79599111,0.00024931,2]
[391616661,1760706684236,-500.78502915,0.00024931,2]
[391616662,1760706684250,-1288.92,0.00024931,2]
[391616663,1760706684262,-500.0,0.00024931,2]
[391616664,1760706684274,-500.0,0.00024931,2]
[391616665,1760706684285,-500.0,0.00024931,2]
[391616666,1760706684297,-500.0,0.00024931,2]
[391616667,1760706684310,-500.0,0.00024931,2]
[391616668,1760706684321,-423.55548623,0.00024931,2]
[391616669,1760706684332,-480.51550222,0.00024931,2]
[391616670,1760706684348,-1387.94,0.00024931,2]
[391616671,1760706684360,-3652.14,0.00024931,2]
[391616672,1760706684372,-500.0,0.00024931,2]
[391616673,1760706684384,-500.0,0.00024931,2]
[391616674,1760706684396,-500.0,0.00024931,2]
[391616675,1760706684408,-500.0,0.00024931,2]
[391616676,1760706684420,-500.0,0.00024931,2]
[391616677,1760706684432,-500.0,0.00024931,2]
[391616678,1760706684443,-1998.52,0.00024931,2]
[391616679,1760706684456,-502.71372669,0.00024931,2]
[391616680,1760706684468,-511.22,0.00024931,2]
[391616681,1760706684480,-501.05396346,0.00024931,2]
[391616682,1760706684491,-500.0,0.00024931,2]
[391616683,1760706684503,-500.0,0.00024931,2]
[391616684,1760706684515,-780.1,0.00024931,2]
[391616685,1760706684527,-500.0,0.00024931,2]
[391616686,1760706684540,-500.0,0.00024931,2]
[391616687,1760706684552,-498.8926823,0.00024931,2]
[391616688,1760706684564,-500.0,0.00024931,2]
[391616689,1760706684576,-3252.66,0.00024931,2]
[391616690,1760706684589,-500.0,0.00024931,2]
[391616691,1760706684601,-500.0,0.00024931,2]
[391616692,1760706684614,-500.0,0.00024931,2]
[391616693,1760706684626,-500.2727282,0.00024931,2]
[391616694,1760706684639,-500.0,0.00024931,2]
[391616695,1760706684651,-500.0,0.00024931,2]
[391616696,1760706684662,-500.0,0.00024931,2]
[391616697,1760706684674,-500.0,0.00024931,2]
[391616698,1760706684686,-500.0,0.00024931,2]
[391616699,1760706684698,-500.0,0.00024931,2]
[391616700,1760706684709,-500.0,0.00024931,2]
[391616701,1760706684721,-505.65702261,0.00024931,2]
[391616702,1760706684734,-500.0,0.00024931,2]
[391616703,1760706684745,-500.0,0.00024931,2]
[391616704,1760706684757,-224.18672018,0.00024931,2]
[391616705,1760706684769,-500.36324121,0.00024931,2]
[391616706,1760706684781,-500.0,0.00024931,2]
[391616707,1760706684792,-500.0,0.00024931,2]
[391616708,1760706684804,-500.0,0.00024931,2]
[391616709,1760706684815,-500.0,0.00024931,2]
[391616710,1760706684827,-500.2445765,0.00024931,2]
[391616711,1760706685302,-500.0,0.00024931,2]
[391616712,1760706685330,-548.85237847,0.00024931,2]
[391616713,1760706685354,-500.0,0.00024931,2]
[391616714,1760706685364,-500.0,0.00024931,2]
[391616715,1760706685375,-500.12642114,0.00024931,2]
[391616716,1760706685384,-500.0,0.00024931,2]
[391616717,1760706685395,-1046.4,0.00024931,2]
[391616718,1760706685405,-500.0,0.00024931,2]
[391616719,1760706685415,-500.40945085,0.00024931,2]
[391616720,1760706685424,-1485.37,0.00024931,2]
[391616721,1760706685434,-2359.88,0.00024931,2]
[391616722,1760706685444,-1140.79,0.00024931,2]
[391616723,1760706685455,-500.5600015,0.00024931,2]
[391616724,1760706685464,-500.0,0.00024931,2]
[391616725,1760706685473,-500.0,0.00024931,2]
[391616726,1760706685483,-500.69435819,0.00024931,2]
[391616727,1760706685492,-500.64104543,0.00024931,2]
[391616728,1760706685502,-524.91659139,0.00024931,2]
[391616729,1760706685512,-500.85699119,0.00024931,2]
[391616730,1760706685521,-500.0,0.00024931,2]
[391616731,1760706685531,-522.5,0.00024931,2]
[391616732,1760706685540,-500.31968849,0.00024931,2]
[391616733,1760706685550,-970.74,0.00024931,2]
[391616734,1760706685560,-500.0,0.00024931,2]
[391616735,1760706685570,-500.0,0.00024931,2]
[391616736,1760706685580,-500.0,0.00024931,2]
[391616737,1760706685590,-509.89723452,0.00024931,2]
[391616738,1760706685599,-500.0,0.00024931,2]
[391616739,1760706685609,-500.0,0.00024931,2]
[391616740,1760706685619,-500.0,0.00024931,2]
[391616741,1760706685629,-281.99076706,0.00024931,2]
[391616742,1760706685638,-507.36,0.00024931,2]
[391616743,1760706685648,-500.52133293,0.00024931,2]
[391616744,1760706685658,-500.0,0.00024931,2]
[391616745,1760706685667,-500.0,0.00024931,2]
[391616746,1760706685677,-500.0,0.00024931,2]
[391616747,1760706685687,-500.0,0.00024931,2]
[391616748,1760706685696,-500.0,0.00024931,2]
[391616749,1760706685705,-502.08532857,0.00024931,2]
[391616750,1760706685716,-500.58242348,0.00024931,2]
[391616751,1760706685726,-500.0,0.00024931,2]
[391616752,1760706685736,-500.0,0.00024931,2]
[391616753,1760706685748,-413.48606077,0.00024931,2]
[391616754,1760706685758,-500.0,0.00024931,2]
[391616755,1760706685768,-500.0,0.00024931,2]
[391616756,1760706685778,-500.0,0.00024931,2]
[391616757,1760706685788,-504.81963158,0.00024931,2]
[391616758,1760706685797,-438.45704586,0.00024931,2]
[391616759,1760706685807,-500.0,0.00024931,2]
[391616760,1760706685817,-500.0,0.00024931,2]
[391616761,1760706685826,-500.0,0.00024931,2]
[391616762,1760706685838,-500.43741803,0.00024931,2]
[391616763,1760706685847,-693.35,0.00024931,2]
[391616764,1760706685857,-644.5,0.00024931,2]